fUST/lending_fUST_20250802
["ID","MTS","AMOUNT","RATE_DAILY","PERIOD"]
[376739822,1754094644710,-460.0,0.00021427,2]
[376739823,1754094644721,-460.0,0.00021427,2]
[376739824,1754094644731,-460.0,0.00021427,2]
[376739825,1754094644741,-460.0,0.00021427,2]
[376739826,1754094644751,-460.0,0.00021427,2]
[376739827,1754094644762,-460.0,0.00021427,2]
[376739828,1754094644771,-572.4,0.00021428,2]
[376739829,1754094644782,-460.0,0.00021428,2]
[376739830,1754094644791,-1133.02,0.00021428,2]
[376739831,1754094644801,-505.64,0.00021429,2]
[376739832,1754094644812,-500.0,0.00021471,2]
[376739833,1754094644822,-200.0,0.00021541,15]
[376739834,1754094644831,-200.0,0.00021541,15]
[376739835,1754094644840,-200.0,0.00021541,15]
[376739836,1754094644850,-200.0,0.00021541,15]
[376739837,1754094644859,-320.0,0.00021541,15]
[376739838,1754094644868,-909.52850048,0.00021555,5]
[376739839,1754094644878,-600.0,0.00021699,2]
[376739840,1754094644887,-2049.25,0.000217,2]
[376739841,1754094644896,-490.53,0.000217,2]
[376739842,1754094644906,-460.85,0.000217,2]
[376739843,1754094644915,-460.0,0.000217,2]
[376739844,1754094644924,-762.91,0.000217,2]
[376739845,1754094644934,-460.0,0.000217,2]
[376739846,1754094644943,-546.16,0.000217,2]
[376739847,1754094644953,-460.0,0.000217,2]
[376739848,1754094644962,-505.95,0.000217,2]
[376739849,1754094644971,-460.0,0.000217,2]
[376739850,1754094644980,-730.84,0.000217,2]
[376739851,1754094644989,-474.43762408,0.00021701,2]
[376739852,1754094644999,-460.0,0.00021701,2]
[376739853,1754094645009,-460.0,0.00021701,2]
[376739854,1754094645018,-460.0,0.00021701,2]
[376739855,1754094645027,-460.0,0.00021701,2]
[376739856,1754094645037,-460.0,0.00021701,2]
[376739857,1754094645047,-359.51464177,0.00021702,2]
[376739858,1754094645056,-572.4,0.00021702,2]
[376739859,1754094645067,-460.0,0.00021702,2]
[376739860,1754094645077,-1133.02,0.00021702,2]
[376739861,1754094645086,-505.64,0.00021703,2]
[376739862,1754094645096,-909.52850048,0.00021831,6]
[376739863,1754094645105,-460.0,0.0002195,2]
[376739864,1754094645114,-500.0,0.00021973,2]
[376739865,1754094645123,-154.19703369,0.00021973,2]
[376739875,1754094648347,-460.0,0.00019782,2]
[376739876,1754094648358,-460.0,0.00020056,2]
[376739877,1754094648368,-345.80296631,0.00021973,2]
[376739878,1754094648378,-1863.51152508,0.00021974,2]
[376739879,1754094708268,-500.0,0.00026142,120]
[376739880,1754094708290,-500.0,0.00026142,120]
[376739881,1754094708312,-500.0,0.00026142,120]
[376739882,1754094708336,-500.0,0.00026142,120]
[376739883,1754094708360,-500.0,0.00026142,120]
[376739884,1754094708382,-500.0,0.00026142,120]
[376739885,1754094708406,-500.0,0.00026142,120]
[376739886,1754094708426,-500.0,0.00026142,120]
[376739887,1754094708448,-500.0,0.00026142,120]
[376739888,1754094708468,-500.0,0.00026142,120]
[376739889,1754094708493,-500.0,0.00026142,120]
[376739890,1754094708514,-500.0,0.00026142,120]
[376739891,1754094708534,-500.0,0.00026142,120]
[376739892,1754094708556,-500.0,0.00026142,120]
[376739893,1754094708577,-500.0,0.00026142,120]
[376739894,1754094708598,-268.72,0.00026142,120]
[376739895,1754094708619,-500.0,0.00026142,120]
[376739896,1754094708640,-500.0,0.00026142,120]
[376739897,1754094708661,-500.0,0.00026142,120]
[376739898,1754094708682,-500.0,0.00026142,120]
[376739899,1754094708703,-500.0,0.00026142,120]
[376739900,1754094708724,-500.0,0.00026142,120]
[376739901,1754094708744,-500.0,0.00026142,120]
[376739902,1754094708764,-500.0,0.00026142,120]
[376739903,1754094708912,-500.0,0.00026142,120]
[376739904,1754094708932,-500.0,0.00026142,120]
[376739905,1754094708957,-500.0,0.00026142,120]
[376739906,1754094708978,-500.0,0.00026142,120]
[376739907,1754094708998,-500.0,0.00026142,120]
[376739908,1754094709018,-500.0,0.00026142,120]
[376739909,1754094709038,-500.0,0.00026142,120]
[376739910,1754094709058,-500.0,0.00026142,120]
[376739911,1754094709078,-500.0,0.00026142,120]
[376739912,1754094709098,-500.0,0.00026142,120]
[376739913,1754094709118,-500.0,0.00026142,120]
[376739914,1754094709138,-500.0,0.00026142,120]
[376739915,1754094709158,-231.28,0.00026142,120]
[376739937,1754095042437,18226.592567,0.00018626,2]
[376739940,1754095265406,151.0,0.00024,120]
[376739941,1754095266805,151.0,0.000252,120]
[376739942,1754095407963,368.74831952,0.00018626,2]
[376739943,1754095643744,500.0,0.00027075,120]
[376739944,1754095644795,368.74831952,0.00018626,2]
[376739945,1754095660329,1000.0,0.00027075,120]
[376739946,1754095669509,1000.0,0.00027075,120]
[376739947,1754095681555,1000.0,0.00027075,120]
[376739948,1754095707500,221.24899172,0.00018626,2]
[376739949,1754095709342,1000.0,0.00027075,120]
[376739950,1754095718544,1000.0,0.00027075,120]
[376739951,1754095739489,1000.0,0.00027075,120]
[376739952,1754095765453,1000.0,0.00027079,120]
[376739953,1754095765790,221.24899172,0.00018626,2]
[376739954,1754095771686,1000.0,0.00027079,120]
[376739955,1754095778494,1000.0,0.00027079,120]
[376739957,1754095784857,1000.0,0.00027079,120]
[376739958,1754095792413,1000.0,0.00027079,120]
[376739959,1754095799386,1000.0,0.00027079,120]
[376740000,1754095832043,-300.0,0.00019233,2]
[376740001,1754095832056,-480.0,0.00019233,2]
[376740003,1754095832065,-460.0,0.00019234,2]
[376740005,1754095832074,-628.37,0.00019234,2]
[376740007,1754095832084,-460.0,0.00019234,2]
[376740009,1754095832094,-460.0,0.00019234,2]
[376740011,1754095832103,-460.0,0.00019234,2]
[376740014,1754095832113,-460.0,0.00019234,2]
[376740015,1754095832123,-460.0,0.00019234,2]
[376740017,1754095832132,-179.5,0.00019234,2]
[376740019,1754095832141,-460.0,0.00019234,2]
[376740021,1754095832150,-460.0,0.00019234,2]
[376740023,1754095832160,-460.0,0.00019234,2]
[376740025,1754095832169,-236.2031215,0.00019234,2]
[376740066,1754095838979,-223.7968785,0.00019234,2]
[376740067,1754095838989,-460.0,0.00019234,2]
[376740068,1754095838999,-460.0,0.00019234,2]
[376740069,1754095839008,-460.30851812,0.00019234,2]
[376740070,1754095839018,-460.0,0.00019234,2]
[376740071,1754095839027,-460.0,0.00019234,2]
[376740072,1754095839037,-460.0,0.00019234,2]
[376740073,1754095839047,-460.0,0.00019234,2]
[376740074,1754095839056,-460.0,0.00019234,2]
[376740075,1754095839069,-460.0,0.00019234,2]
[376740076,1754095839078,-752.34,0.00019234,2]
[376740077,1754095839088,-460.0,0.00019234,2]
[376740078,1754095839097,-460.0,0.00019234,2]
[376740079,1754095839106,-632.24,0.00019234,2]
[376740080,1754095839116,-460.0,0.00019234,2]
[376740081,1754095839128,-460.0,0.00019234,2]
[376740082,1754095839137,-460.0,0.00019234,2]
[376740083,1754095839147,-208.2,0.00019234,2]
[376740084,1754095839157,-460.0,0.00019234,2]
[376740085,1754095839166,-460.0,0.00019234,2]
[376740086,1754095839176,-460.0,0.00019234,2]
[376740087,1754095839186,-460.0,0.00019234,2]
[376740088,1754095839195,-460.0,0.00019234,2]
[376740089,1754095839204,-460.0,0.00019234,2]
[376740090,1754095839213,-460.0,0.00019234,2]
[376740091,1754095839223,-460.0,0.00019234,2]
[376740092,1754095839233,-460.0,0.00019234,2]
[376740093,1754095839243,-572.05665888,0.00019234,2]
[376740094,1754095839252,-488.95,0.00019234,2]
[376740095,1754095839261,-460.0,0.00019234,2]
[376740096,1754095839271,-460.0,0.00019234,2]
[376740097,1754095839280,-460.0,0.00019234,2]
[376740098,1754095839289,-460.0,0.00019234,2]
[376740099,1754095839299,-462.06,0.00019234,2]
[376740100,1754095839308,-460.0,0.00019234,2]
[376740101,1754095839320,-466.06304645,0.00019235,2]
[376740102,1754095839329,-460.0,0.00019235,2]
[376740103,1754095839338,-784.46,0.00019236,2]
[376740104,1754095839347,-460.0,0.00019236,2]
[376740105,1754095839357,-486.63,0.00019236,2]
[376740106,1754095839366,-255.47129341,0.00019407,2]
[376740107,1754095839375,-460.0,0.00019507,2]
[376740108,1754095839385,-460.0,0.00019507,2]
[376740109,1754095839395,-460.0,0.00019507,2]
[376740110,1754095839404,-460.0,0.00019507,2]
[376740111,1754095839413,-460.0,0.00019507,2]
[376740112,1754095839423,-460.0,0.00019507,2]
[376740113,1754095839432,-460.0,0.00019507,2]
[376740115,1754095839441,-469.25,0.00019507,2]
[376740116,1754095839451,-460.0,0.00019507,2]
[376740118,1754095839460,-594.08945891,0.00019507,2]
[376740120,1754095839469,-2517.13,0.00019507,2]
[376740121,1754095839479,-283.56187909,0.00019507,2]
[376740122,1754095839488,-460.0,0.00019507,2]
[376740123,1754095839498,-460.0,0.00019507,2]
[376740124,1754095839507,-460.0,0.00019507,2]
[376740125,1754095839516,-460.0,0.00019507,2]
[376740127,1754095839526,-460.0,0.00019507,2]
[376740128,1754095839536,-532.66,0.00019507,2]
[376740129,1754095839546,-460.0,0.00019507,2]
[376740130,1754095839555,-460.0,0.00019507,2]
[376740131,1754095839566,-460.0,0.00019507,2]
[376740132,1754095839575,-460.0,0.00019507,2]
[376740133,1754095839586,-460.0,0.00019507,2]
[376740134,1754095839595,-710.96,0.00019507,2]
[376740135,1754095839605,-460.0,0.00019507,2]
[376740136,1754095839614,-500.0,0.00019507,2]
[376740137,1754095839624,-460.0,0.00019507,2]
[376740138,1754095839634,-460.0,0.00019507,2]
[376740139,1754095839643,-460.0,0.00019507,2]
[376740140,1754095839653,-460.0,0.00019507,2]
[376740141,1754095839662,-460.0,0.00019507,2]
[376740142,1754095839671,-460.0,0.00019507,2]
[376740143,1754095839681,-460.0,0.00019507,2]
[376740144,1754095839690,-460.0,0.00019507,2]
[376740145,1754095839700,-1023.05,0.00019507,2]
[376740146,1754095839709,-460.0,0.00019507,2]
[376740147,1754095839718,-458.44593449,0.00019507,2]
[376740148,1754095839728,-460.0,0.00019507,2]
[376740149,1754095839738,-460.0,0.00019507,2]
[376740150,1754095839749,-460.0,0.00019507,2]
[376740151,1754095839759,-460.0,0.00019507,2]
[376740152,1754095839769,-460.0,0.00019507,2]
[376740153,1754095839778,-460.0,0.00019507,2]
[376740154,1754095839789,-460.0,0.00019507,2]
[376740155,1754095839798,-460.0,0.00019507,2]
[376740156,1754095839808,-460.0,0.00019508,2]
[376740157,1754095839819,-628.37,0.00019508,2]
[376740158,1754095839829,-460.0,0.00019508,2]
[376740159,1754095839840,-460.0,0.00019508,2]
[376740160,1754095839849,-460.0,0.00019508,2]
[376740161,1754095839859,-158.64,0.00019508,2]
[376740162,1754095839869,-460.0,0.00019508,2]
[376740164,1754095839878,-460.0,0.00019508,2]
[376740166,1754095839888,-460.0,0.00019508,2]
[376740167,1754095839898,-460.0,0.00019508,2]
[376740168,1754095839908,-752.34,0.00019508,2]
[376740169,1754095839918,-151.0,0.00019508,2]
[376740170,1754095839927,-151.0,0.00019508,2]
[376740172,1754095839936,-460.0,0.00019508,2]
[376740174,1754095839946,-460.0,0.00019508,2]
[376740176,1754095839955,-632.24,0.00019508,2]
[376740178,1754095839964,-460.0,0.00019508,2]
[376740180,1754095839974,-1619.55,0.00019508,2]
[376740182,1754095839985,-460.0,0.00019508,2]
[376740184,1754095839994,-460.0,0.00019508,2]
[376740186,1754095840004,-460.0,0.00019508,2]
[376740188,1754095840013,-460.0,0.00019508,2]
[376740190,1754095840023,-460.0,0.00019508,2]
[376740192,1754095840033,-460.0,0.00019508,2]
[376740194,1754095840042,-460.0,0.00019508,2]
[376740196,1754095840051,-460.0,0.00019508,2]
[376740198,1754095840062,-460.0,0.00019508,2]
[376740201,1754095840072,-460.0,0.00019508,2]
[376740203,1754095840081,-460.0,0.00019508,2]
[376740205,1754095840091,-460.0,0.00019508,2]
[376740207,1754095840100,-460.0,0.00019509,2]
[376740209,1754095840110,-460.0,0.00019509,2]
[376740211,1754095840119,-460.0,0.00019509,2]
[376740213,1754095840129,-581.88,0.00019509,2]
[376740215,1754095840138,-462.66,0.00019509,2]
[376740217,1754095840148,-460.0,0.00019509,2]
[376740219,1754095840157,-413.2,0.00019509,2]
[376740221,1754095840167,-460.0,0.00019509,2]
[376740222,1754095840176,-1006.37453044,0.00019509,2]
[376740224,1754095840185,-784.46,0.0001951,2]
[376740226,1754095840195,-460.0,0.0001951,2]
[376740228,1754095840204,-625.0,0.0001951,2]
[376740230,1754095840214,-486.63,0.0001951,2]
[376740233,1754095840223,-261.74517672,0.00019573,2]
[376740235,1754095840233,-500.0,0.00019573,2]
[376740237,1754095840243,-200.0,0.00019618,15]
[376740239,1754095840253,-200.0,0.00019618,15]
[376740241,1754095840262,-200.0,0.00019618,15]
[376740243,1754095840271,-200.0,0.00019618,15]
[376740245,1754095840281,-500.0,0.00019781,2]
[376740246,1754095840291,-460.0,0.00019781,2]
[376740248,1754095840300,-2517.13,0.00019781,2]
[376740250,1754095840309,-460.0,0.00019781,2]
[376740252,1754095840321,-460.0,0.00019781,2]
[376740253,1754095840514,-460.0,0.00019781,2]
[376740254,1754095840528,-460.0,0.00019781,2]
[376740255,1754095840538,-460.0,0.00019781,2]
[376740256,1754095840547,-460.0,0.00019781,2]
[376740257,1754095840556,-710.96,0.00019781,2]
[376740258,1754095840567,-460.0,0.00019781,2]
[376740259,1754095840576,-460.0,0.00019781,2]
[376740260,1754095840585,-460.0,0.00019781,2]
[376740261,1754095840594,-590.32,0.00019781,2]
[376740262,1754095840604,-460.0,0.00019781,2]
[376740263,1754095840613,-460.0,0.00019781,2]
[376740264,1754095840623,-460.0,0.00019781,2]
[376740265,1754095840631,-460.0,0.00019781,2]
[376740266,1754095840641,-1023.05,0.00019781,2]
[376740267,1754095840650,-460.0,0.00019781,2]
[376740268,1754095840658,-460.0,0.00019781,2]
[376740269,1754095840668,-460.0,0.00019781,2]
[376740270,1754095840677,-460.0,0.00019781,2]
[376740271,1754095840686,-460.0,0.00019781,2]
[376740272,1754095840696,-460.0,0.00019782,2]
[376740273,1754095840705,-628.37,0.00019782,2]
[376740274,1754095840715,-460.0,0.00019782,2]
[376740275,1754095840724,-414.54,0.00019782,2]
[376740276,1754095840735,-460.0,0.00019782,2]
[376740277,1754095840747,-460.0,0.00019782,2]
[376740278,1754095840755,-460.0,0.00019782,2]
[376740279,1754095840765,-460.0,0.00019782,2]
[376740280,1754095840775,-752.34,0.00019782,2]
[376740281,1754095840784,-460.0,0.00019782,2]
[376740282,1754095840794,-460.0,0.00019782,2]
[376740283,1754095840803,-632.24,0.00019782,2]
[376740284,1754095840812,-460.0,0.00019782,2]
[376740285,1754095840826,-1619.55,0.00019782,2]
[376740286,1754095840837,-460.0,0.00019782,2]
[376740287,1754095840846,-460.0,0.00019782,2]
[376740288,1754095840855,-460.0,0.00019782,2]
[376740289,1754095840865,-460.0,0.00019782,2]
[376740290,1754095840874,-460.0,0.00019782,2]
[376740291,1754095840883,-460.0,0.00019782,2]
[376740292,1754095840892,-460.0,0.00019782,2]
[376740293,1754095840901,-460.0,0.00019782,2]
[376740294,1754095840911,-460.0,0.00019782,2]
[376740295,1754095840920,-460.0,0.00019782,2]
[376740296,1754095840929,-460.0,0.00019782,2]
[376740297,1754095840938,-460.0,0.00019782,2]
[376740298,1754095840947,-460.0,0.00019783,2]
[376740299,1754095840956,-460.0,0.00019783,2]
[376740300,1754095840965,-581.88,0.00019783,2]
[376740301,1754095840973,-462.66,0.00019783,2]
[376740302,1754095840982,-460.0,0.00019783,2]
[376740303,1754095840991,-460.0,0.00019783,2]
[376740304,1754095841000,-625.0,0.00019784,2]
[376740305,1754095841009,-784.46,0.00019784,2]
[376740306,1754095841018,-460.0,0.00019784,2]
[376740307,1754095841027,-486.63,0.00019784,2]
[376740308,1754095841037,-1273.87587156,0.000199,2]
[376740309,1754095841045,-312.79241502,0.00020054,2]
[376740310,1754095841055,-500.0,0.00020054,2]
[376740311,1754095841066,-500.0,0.00020054,2]
[376740312,1754095841075,-159.10872817,0.00020054,2]
[376740313,1754095841084,-320.78789292,0.00020054,2]
[376740314,1754095841093,-462.50781711,0.00020054,2]
[376740315,1754095841102,-207.32972828,0.00020054,2]
[376740316,1754095841111,-500.0,0.00020055,2]
[376740317,1754095841120,-172.68,0.00020055,2]
[376740318,1754095841129,-2517.13,0.00020055,2]
[376740319,1754095841138,-460.0,0.00020055,2]
[376740320,1754095841146,-460.0,0.00020055,2]
[376740321,1754095841155,-460.0,0.00020055,2]
[376740322,1754095841164,-460.0,0.00020055,2]
[376740323,1754095841173,-185.26,0.00020055,2]
[376740324,1754095841183,-710.96,0.00020055,2]
[376740325,1754095841192,-460.0,0.00020055,2]
[376740327,1754095841201,-460.0,0.00020055,2]
[376740329,1754095841211,-460.0,0.00020055,2]
[376740331,1754095841221,-460.0,0.00020055,2]
[376740333,1754095841230,-460.0,0.00020055,2]
[376740335,1754095841239,-460.0,0.00020055,2]
[376740337,1754095841249,-1023.05,0.00020055,2]
[376740339,1754095841258,-460.0,0.00020055,2]
[376740341,1754095841267,-460.0,0.00020055,2]
[376740343,1754095841276,-460.0,0.00020055,2]
[376740345,1754095841285,-477.88179533,0.00020055,2]
[376740347,1754095841294,-460.0,0.00020055,2]
[376740348,1754095841303,-460.0,0.00020056,2]
[376740350,1754095841314,-628.37,0.00020056,2]
[376740352,1754095841323,-460.0,0.00020056,2]
[376740354,1754095841332,-460.0,0.00020056,2]
[376740356,1754095841342,-460.0,0.00020056,2]
[376740358,1754095841351,-460.0,0.00020056,2]
[376740360,1754095841360,-752.34,0.00020056,2]
[376740362,1754095841370,-460.0,0.00020056,2]
[376740364,1754095841379,-460.0,0.00020056,2]
[376740366,1754095841388,-632.24,0.00020056,2]
[376740368,1754095841397,-495.64,0.00020056,2]
[376740370,1754095841406,-1619.55,0.00020056,2]
[376740372,1754095841415,-460.0,0.00020056,2]
[376740374,1754095841424,-460.0,0.00020056,2]
[376740376,1754095841433,-460.0,0.00020056,2]
[376740378,1754095841445,-460.0,0.00020056,2]
[376740380,1754095841454,-460.0,0.00020056,2]
[376740382,1754095841463,-460.0,0.00020056,2]
[376740384,1754095841472,-460.0,0.00020056,2]
[376740386,1754095841481,-460.0,0.00020056,2]
[376740388,1754095841490,-460.0,0.00020056,2]
[376740390,1754095841500,-460.0,0.00020056,2]
[376740392,1754095841509,-460.0,0.00020056,2]
[376740394,1754095841518,-460.0,0.00020056,2]
[376740396,1754095841527,-460.0,0.00020057,2]
[376740397,1754095841536,-460.0,0.00020057,2]
[376740399,1754095841545,-581.88,0.00020057,2]
[376740401,1754095841554,-462.66,0.00020057,2]
[376740403,1754095841565,-460.0,0.00020057,2]
[376740405,1754095841574,-460.0,0.00020057,2]
[376740407,1754095841583,-625.0,0.00020058,2]
[376740409,1754095841593,-784.46,0.00020058,2]
[376740411,1754095841602,-460.0,0.00020058,2]
[376740413,1754095841611,-486.63,0.00020058,2]
[376740415,1754095841620,-200.0,0.00020121,2]
[376740417,1754095841629,-1489.30129527,0.00020173,2]
[376740419,1754095841638,-1273.87587132,0.00020176,2]
[376740421,1754095841646,-500.0,0.00020329,2]
[376740423,1754095841655,-2517.13,0.00020329,2]
[376740425,1754095841665,-460.85,0.00020329,2]
[376740427,1754095841674,-460.0,0.00020329,2]
[376740429,1754095841684,-487.71,0.00020329,2]
[376740431,1754095841693,-460.0,0.00020329,2]
[376740433,1754095841702,-710.96,0.00020329,2]
[376740435,1754095841711,-460.0,0.00020329,2]
[376740437,1754095841720,-460.0,0.00020329,2]
[376740439,1754095841730,-460.0,0.00020329,2]
[376740441,1754095841739,-460.0,0.00020329,2]
[376740443,1754095841753,-418.27,0.00020329,2]
[376740445,1754095841763,-1023.05,0.00020329,2]
[376740447,1754095841772,-460.0,0.00020329,2]
[376740449,1754095841781,-460.0,0.00020329,2]
[376740451,1754095841792,-460.0,0.00020329,2]
[376740453,1754095841801,-482.15,0.00020329,2]
[376740455,1754095841810,-460.0,0.0002033,2]
[376740457,1754095841823,-628.37,0.0002033,2]
[376740459,1754095841832,-460.0,0.0002033,2]
[376740461,1754095841841,-460.0,0.0002033,2]
[376740463,1754095841850,-460.0,0.0002033,2]
[376740465,1754095841860,-752.34,0.0002033,2]
[376740467,1754095841869,-325.43160482,0.0002033,2]
[376740469,1754095841878,-460.0,0.0002033,2]
[376740471,1754095841888,-632.24,0.0002033,2]
[376740473,1754095841897,-1619.55,0.0002033,2]
[376740475,1754095841907,-460.0,0.0002033,2]
[376740477,1754095841916,-460.0,0.0002033,2]
[376740479,1754095841925,-460.0,0.0002033,2]
[376740481,1754095841935,-460.0,0.0002033,2]
[376740483,1754095841943,-460.0,0.0002033,2]
[376740485,1754095841952,-456.22,0.0002033,2]
[376740487,1754095841961,-597.17898052,0.0002033,2]
[376740489,1754095841970,-460.0,0.0002033,2]
[376740491,1754095841979,-460.0,0.0002033,2]
[376740493,1754095841989,-191.64,0.0002033,2]
[376740495,1754095841997,-460.0,0.0002033,2]
[376740496,1754095842006,-460.0,0.0002033,2]
[376740498,1754095842016,-376.03,0.00020331,2]
[376740500,1754095842025,-460.0,0.00020331,2]
[376740502,1754095842033,-581.88,0.00020331,2]
[376740504,1754095842043,-462.66,0.00020331,2]
[376740506,1754095842052,-460.0,0.00020331,2]
[376740508,1754095842061,-460.0,0.00020331,2]
[376740510,1754095842071,-625.0,0.00020332,2]
[376740512,1754095842081,-784.46,0.00020332,2]
[376740514,1754095842090,-460.0,0.00020332,2]
[376740516,1754095842099,-486.63,0.00020332,2]
[376740518,1754095842109,-1273.87587132,0.00020452,3]
[376740520,1754095842118,-255.47129339,0.00020489,2]
[376740522,1754095842127,-210.99,0.00020601,2]
[376740524,1754095842136,-500.0,0.00020603,2]
[376740526,1754095842145,-2517.13,0.00020603,2]
[376740528,1754095842155,-460.0,0.00020603,2]
[376740530,1754095842164,-460.0,0.00020603,2]
[376740532,1754095842173,-710.96,0.00020603,2]
[376740534,1754095842181,-460.0,0.00020603,2]
[376740536,1754095842191,-460.0,0.00020603,2]
[376740538,1754095842200,-460.0,0.00020603,2]
[376740540,1754095842209,-460.0,0.00020603,2]
[376740542,1754095842218,-1023.05,0.00020603,2]
[376740544,1754095842227,-460.0,0.00020603,2]
[376740546,1754095842236,-460.0,0.00020603,2]
[376740548,1754095842245,-460.0,0.00020603,2]
[376740550,1754095842254,-460.0,0.00020604,2]
[376740552,1754095842263,-628.37,0.00020604,2]
[376740554,1754095842272,-460.0,0.00020604,2]
[376740556,1754095842281,-460.0,0.00020604,2]
[376740558,1754095842291,-460.0,0.00020604,2]
[376740560,1754095842300,-752.34,0.00020604,2]
[376740562,1754095842309,-368.63,0.00020604,2]
[376740564,1754095842320,-632.24,0.00020604,2]
[376740566,1754095842329,-1619.55,0.00020604,2]
[376740568,1754095842339,-460.0,0.00020604,2]
[376740571,1754095842348,-460.0,0.00020604,2]
[376740573,1754095842357,-261.57,0.00020604,2]
[376740575,1754095842366,-460.0,0.00020604,2]
[376740577,1754095842375,-460.0,0.00020604,2]
[376740579,1754095842385,-460.0,0.00020604,2]
[376740581,1754095842394,-460.0,0.00020604,2]
[376740583,1754095842403,-460.0,0.00020604,2]
[376740585,1754095842412,-460.0,0.00020604,2]
[376740587,1754095842421,-460.0,0.00020605,2]
[376740589,1754095842431,-581.88,0.00020605,2]
[376740591,1754095842440,-462.66,0.00020605,2]
[376740593,1754095842449,-460.0,0.00020605,2]
[376740595,1754095842458,-460.0,0.00020605,2]
[376740597,1754095842467,-625.0,0.00020606,2]
[376740599,1754095842477,-784.46,0.00020606,2]
[376740601,1754095842486,-460.0,0.00020606,2]
[376740603,1754095842495,-486.63,0.00020606,2]
[376740605,1754095842504,-1273.87587132,0.00020728,3]
[376740607,1754095842513,-867.70903191,0.00020779,2]
[376740609,1754095842522,-500.0,0.00020873,2]
[376740611,1754095842530,-500.0,0.00020873,2]
[376740613,1754095842539,-500.0,0.00020873,2]
[376740615,1754095842549,-421.83016461,0.00020873,2]
[376740617,1754095842557,-500.0,0.00020873,2]
[376740619,1754095842569,-500.0,0.00020877,2]
[376740621,1754095842578,-2517.13,0.00020877,2]
[376740623,1754095842587,-460.0,0.00020877,2]
[376740626,1754095842596,-460.0,0.00020877,2]
[376740628,1754095842605,-710.96,0.00020877,2]
[376740630,1754095842614,-460.0,0.00020877,2]
[376740632,1754095842624,-460.0,0.00020877,2]
[376740634,1754095842633,-460.0,0.00020877,2]
[376740635,1754095842642,-460.0,0.00020877,2]
[376740637,1754095842651,-1023.05,0.00020877,2]
[376740639,1754095842660,-460.0,0.00020877,2]
[376740641,1754095842670,-460.0,0.00020877,2]
[376740643,1754095842679,-460.0,0.00020877,2]
[376740645,1754095842689,-460.0,0.00020878,2]
[376740647,1754095842698,-628.37,0.00020878,2]
[376740649,1754095842708,-422.1,0.00020878,2]
[376740651,1754095842718,-460.0,0.00020878,2]
[376740654,1754095842728,-460.0,0.00020878,2]
[376740656,1754095842742,-752.34,0.00020878,2]
[376740658,1754095842752,-632.24,0.00020878,2]
[376740659,1754095842762,-1619.55,0.00020878,2]